Cogmind - Beta 11 X8 @@@ ROGUE MODE // 2021.11.23 @ 16:30:15 Player: MTF Result: Destroyed by G-47 Trooper with Particle Gun Performance ------------- Evolutions (2) 1000 Regions Visited (7) 1400 Robots Destroyed (90) 450 Value Destroyed (2067) 2067 Prototype IDs (28) 560 Alien Tech Used (0) 0 Bonus (435) 435 TOTAL SCORE: 5912 Bonus ------- High Alert Combat Kills 85 Follower Combat Kills 158 Aligned with FarCom 300 Friendly Fire -108 Cogmind --------- Core Integrity 0/550 Matter 7/300 Energy 99/100 System Corruption 1% Temperature Cool (9) Movement Core (50) Location -8/Materials Parts ------- > --- POWER (1) -------- (None) > --- PROPULSION (4) --- (None) > --- UTILITY (4) ------ (None) > --- WEAPON (2) ------- (None) > --- INVENTORY (5) ---- Medium Storage Unit Hacking Suite Heavy Assault Rifle Field Lobotomy Kit (5) Peak State ------------ > --- POWER ------------ Heavy Ion Engine > --- PROPULSION ------- Light Treads Improved Flight Unit Improved Flight Unit > --- UTILITY ---------- Huge Storage Unit Improved Targeting Computer Hardened Light Armor Plating > --- WEAPON ----------- Improved Assault Rifle Improved Assault Rifle > --- INVENTORY -------- Light Nuclear Core Medium Storage Unit Transport Network Coupler Hardened Light Armor Plating Hardened Light Armor Plating Hacking Suite Hacking Suite Heavy Assault Rifle Heavy Assault Rifle Heavy Assault Rifle Improved Assault Rifle Rocket Launcher Mini Grenade Launcher Field Lobotomy Kit [Rating: 24] Favorites ----------- Power Heavy Ion Engine Engine Heavy Ion Engine Power Core Light Nuclear Core Propulsion Light Treads Treads Light Treads Leg Aluminum Leg Flight Unit Improved Flight Unit Utility Improved Targeting Computer Device Improved Terrain Scanner Storage Huge Storage Unit Processor Improved Targeting Computer Hackware Authchip [Storage] Protection Light Armor Plating Weapon Improved Assault Rifle Energy Gun Medium Laser Ballistic Gun Improved Assault Rifle Launcher Grenade Launcher Build | -11 -10 -10 -9 -9 -9 -8 -8 ------- Run | Scr Mat Min Mat Min Exi Min Mat Slots Evolved 4 | . . . 2 . . . 2 Power . | . . . . . . . . Propulsion 2 | . . . 1 . . . 1 Utility 2 | . . . 1 . . . 1 Weapon . | . . . . . . . . Parts Attached 76 | 4 13 5 29 10 . 14 1 Power 7 | . 2 1 2 . . 2 . Engine 5 | . 2 . 2 . . 1 . Core 2 | . . 1 . . . 1 . Reactor . | . . . . . . . . Propulsion 16 | 2 2 . 7 . . 5 . Treads 13 | 2 2 . 6 . . 3 . Leg . | . . . . . . . . Wheel . | . . . . . . . . Hover . | . . . . . . . . Flight 3 | . . . 1 . . 2 . Utility 17 | 1 3 2 5 2 . 4 . Device 1 | 1 . . . . . . . Storage 3 | . 2 1 . . . . . Processor 3 | . 1 . 2 . . . . Hackware 1 | . . . . 1 . . . Protection 9 | . . 1 3 1 . 4 . Artifact . | . . . . . . . . Weapon 36 | 1 6 2 15 8 . 3 1 Energy Gun 2 | . 2 . . . . . . Energy Cannon . | . . . . . . . . Ballistic Gun 18 | 1 1 1 10 2 . 3 . Ballistic Cannon . | . . . . . . . . Launcher 16 | . 3 1 5 6 . . 1 Special Weapon . | . . . . . . . . Impact Weapon . | . . . . . . . . Slashing Weapon . | . . . . . . . . Piercing Weapon . | . . . . . . . . Special Melee Weapon . | . . . . . . . . Unidentified Prototypes 3 | . . . 3 . . . . Parts Lost 23 | . 1 . 3 . . 17 2 Power 4 | . . . 1 . . 3 . Propulsion 8 | . . . . . . 7 1 Utility 5 | . . . 1 . . 4 . Weapon 6 | . 1 . 1 . . 3 1 Highest Loss Streak 11 | . 1 . 1 . . 11 2 Average Slot Usage (%) 98 | . 99 100 99 100 100 92 30 Engine 9 | . 14 . 7 11 11 8 . Core 2 | . . 13 3 . . 1 . Treads 30 | . 27 28 33 33 33 21 . Device 1 | . 6 . . . . . . Storage 11 | . 14 14 11 11 11 11 5 Processor 10 | . 7 1 13 11 11 8 . Protection 6 | . . 12 7 11 11 12 6 Energy Gun 2 | . 6 14 . . . . . Ballistic Gun 19 | . 21 . 21 16 22 22 11 Launcher 1 | . . 13 . 5 . . . Naked Turns 22 | . . . . . . . 22 Heaviest Build 98 | 15 30 93 97 98 97 97 91 Greatest Support 63 | 40 40 40 63 63 63 63 5 Greatest Overweight (x) 30 | . . 2 1 1 1 30 18 Average Overweight (x) . | . . . 1 1 1 4 1 Largest Inventory Capacity 25 | 8 15 25 25 25 25 25 25 Average Capacity 21 | 8 14 15 25 25 25 25 17 Most Carried 25 | 6 14 16 25 25 25 25 10 Average Carried 18 | 5 9 14 23 25 22 18 7 Final Capacity 25 | 8 15 25 25 25 25 25 5 Final Carried 25 | 4 14 16 25 25 25 10 4 Class Distribution -------------------- 93% | Mutant 6% | Scavenger-Mutant Dominant Class ---------------- Mutant | -10/Materials Mutant | -10/Mines Mutant | -9/Materials Mutant | -9/Mines Mutant | -9/Exiles Mutant | -8/Mines Mutant | -8/Materials Resources | -11 -10 -10 -9 -9 -9 -8 -8 ----------- Run | Scr Mat Min Mat Min Exi Min Mat Matter Collected 2206 | 261 471 72 1056 139 . 150 57 Remotely . | . . . . . . . . Salvage Created 3092 | 100 899 61 1797 197 . . 38 Parts 200 | 6 63 2 112 9 . . 8 Haulers Intercepted 8 | . 2 . 6 . . . . Recyclers Shooed 2 | . 2 . . . . . . Parts Field Recycled . | . . . . . . . . Retrieved Matter . | . . . . . . . . Parts Self-Destructed . | . . . . . . . . Prevented . | . . . . . . . . Kills | -11 -10 -10 -9 -9 -9 -8 -8 ------- Run | Scr Mat Min Mat Min Exi Min Mat Combat Hostiles Destroyed 54 | . 15 2 28 4 . . 5 Guns 37 | . 14 1 22 . . . . AOE 17 | . 1 1 6 4 . . 5 Classes Destroyed 11 | 2 7 . 2 . . . . Worker 3 | . 2 . 1 . . . . Builder 3 | . 1 . 2 . . . . Tunneler 3 | 1 2 . . . . . . Hauler 8 | . 2 . 6 . . . . Recycler 7 | 1 2 . 3 1 . . . Operator 4 | . 2 . 2 . . . . Watcher 8 | . 3 . 5 . . . . Swarmer 10 | . 3 . 3 . . . 4 Grunt 37 | . 12 2 18 4 . . 1 Brawler 1 | . . . 1 . . . . Sentry 6 | . . . 6 . . . . Best Kill Streak 5 | 2 4 2 4 2 . . 5 Combat Bots Only 5 | . 3 2 3 2 . . 5 Max Kills in Single Turn 3 | 1 2 1 3 2 . . 2 Gunslinging 1 | . 1 . 1 . . . . Exploded 3 | . 1 1 3 2 . . 2 Melee . | . . . . . . . . Uniques/NPCs Destroyed . | . . . . . . . . Combat | -11 -10 -10 -9 -9 -9 -8 -8 -------- Run | Scr Mat Min Mat Min Exi Min Mat Damage Taken 5165 | . 498 160 1052 59 40 2601 755 Core 1020 | . 89 7 143 . . 219 562 Absorbed by Shields . | . . . . . . . . Core Remaining (%) 56 | 100 . 61 . . . 9 . Volleys Fired 302 | 7 91 5 126 3 1 64 5 Largest 2 | 2 2 2 2 1 2 2 1 Hottest 70 | 70 70 70 46 33 46 46 33 Shots Fired 581 | 14 176 9 244 3 2 128 5 Gun 561 | 14 173 8 236 . 2 128 . Cannon . | . . . . . . . . Launcher 20 | . 3 1 8 3 . . 5 Special . | . . . . . . . . Kinetic 533 | 7 156 4 236 . 2 128 . Thermal 28 | 7 17 4 . . . . . Explosive 20 | . 3 1 8 3 . . 5 Electromagnetic . | . . . . . . . . Robot Hit Streak 47 | 4 9 10 20 2 4 47 1 Robot Miss Streak 6 | 2 6 . 5 1 . 1 2 Penetration Max . | . . . . . . . . Secondary Targets 5 | . 1 . 4 . . . . Max Gunslinging Chain 1 | . 1 . 1 . . . . Shots Hit Robots 428 | 8 107 9 177 2 2 121 2 Core Hits 179 | 3 51 6 70 6 1 34 8 Critical Kills 2 | . . . 2 . . . . Critical Parts Destroyed 2 | . 1 . 1 . . . . Critical Strikes 7 | 2 2 . 3 . . . . Burn 3 | 2 1 . . . . . . Destroy 4 | . 1 . 3 . . . . Melee Attacks . | . . . . . . . . Impact . | . . . . . . . . Slashing . | . . . . . . . . Piercing . | . . . . . . . . Sneak Attacks . | . . . . . . . . Combat Hostiles . | . . . . . . . . Follow-up Attacks . | . . . . . . . . Damage Inflicted 7651 | 97 1440 174 3203 359 36 1799 543 Guns 5886 | 97 1228 97 2629 . 36 1799 . Cannons . | . . . . . . . . Explosions 1606 | . 165 60 524 314 . . 543 Melee . | . . . . . . . . Ramming 159 | . 47 17 50 45 . . . Kinetic 5657 | 34 1113 46 2629 . 36 1799 . Thermal 229 | 63 115 51 . . . . . Explosive 1606 | . 165 60 524 314 . . 543 Electromagnetic . | . . . . . . . . Impact . | . . . . . . . . Slashing . | . . . . . . . . Piercing . | . . . . . . . . Highest Corruption 1 | . . . . . . . 1 Average Corruption 1 | . . . . . . . 1 Corruption Purged . | . . . . . . . . Overload Shots . | . . . . . . . . Overflow Damage 29 | . . . . 6 . . 23 Projectiles . | . . . . . . . . Explosions 29 | . . . . 6 . . 23 Melee . | . . . . . . . . Knockbacks 2 | . 1 . 1 . . . . Impact 2 | . 1 . 1 . . . . Kinetic . | . . . . . . . . Secondary . | . . . . . . . . Self-Inflicted Damage 101 | . . 32 45 24 . . . Shots 4 | . . 1 2 1 . . . Rammed 20 | . 7 4 5 4 . . . Targets Rammed 23 | . 8 4 7 4 . . . Kicked . | . . . . . . . . Crushed 3 | . 1 . 2 . . . . Highest Temperature 167 | 27 39 81 23 . . 167 3 Average Temperature 26 | 12 11 43 4 . . 43 3 Received Heat Transfer 1515 | . 249 63 429 18 . 450 306 Siege Activations . | . . . . . . . . Robots Corrupted . | . . . . . . . . Combat Hostiles . | . . . . . . . . Parts Fried . | . . . . . . . . Impact Corruptions . | . . . . . . . . Robots Melted . | . . . . . . . . Combat Hostiles . | . . . . . . . . Parts Melted 3 | 2 1 . . . . . . Heat Transferred 888 | 333 407 148 . . . . . Parts Sabotaged . | . . . . . . . . Parts Stolen . | . . . . . . . . Parts Stripped . | . . . . . . . . Power Chain Reactions . | . . . . . . . . Missiles Intercepted . | . . . . . . . . Alert | -11 -10 -10 -9 -9 -9 -8 -8 ------- Run | Scr Mat Min Mat Min Exi Min Mat Peak Influence 565 | 10 233 118 565 306 . . 160 Initial 201 | . 6 46 20 201 . . . Average 224 | 5 120 80 368 213 . . 20 Maximum Alert Level 2 | . 1 . 2 1 . . . Low Security (%) 55 | 100 89 100 18 27 . 100 100 Level 1 22 | . 10 . 29 72 . . . Level 2 22 | . . . 52 . . . . Level 3 . | . . . . . . . . Level 4 . | . . . . . . . . Level 5 . | . . . . . . . . High Security . | . . . . . . . . Max Security . | . . . . . . . . Squads Dispatched 12 | . 6 . 4 . . . 2 Investigation 6 | . 4 . 2 . . . . Extermination . | . . . . . . . . Reinforcement 6 | . 2 . 2 . . . 2 Assault . | . . . . . . . . Garrison . | . . . . . . . . Intercept . | . . . . . . . . Construction Impeded . | . . . . . . . . Haulers Reinforced . | . . . . . . . . Active Scanning Responses . | . . . . . . . . Cargo Convoy Interrupts . | . . . . . . . . Stealth | -11 -10 -10 -9 -9 -9 -8 -8 --------- Run | Scr Mat Min Mat Min Exi Min Mat Distress Signals 6 | . 2 . 3 . . . 1 Communications Jammed . | . . . . . . . . Distress Signals . | . . . . . . . . Times Spotted 103 | . 27 4 44 6 1 1 20 Peak Tracking Total 14 | . 3 3 8 2 2 1 14 Tactical Retreats 3 | . 2 . 1 . . . . Traps | -11 -10 -10 -9 -9 -9 -8 -8 ------- Run | Scr Mat Min Mat Min Exi Min Mat Traps Triggered 3 | . 2 . . . . . 1 Indirectly . | . . . . . . . . Trap Hack Attempts . | . . . . . . . . Triggered . | . . . . . . . . Disarmed . | . . . . . . . . Reprogrammed . | . . . . . . . . Reused . | . . . . . . . . Traps Extracted . | . . . . . . . . Installed . | . . . . . . . . Triggered . | . . . . . . . . Machines | -11 -10 -10 -9 -9 -9 -8 -8 ---------- Run | Scr Mat Min Mat Min Exi Min Mat Machines Disabled 1 | . . . . . . . 1 Max in Single Turn 1 | . . . . . . . 1 Machines Sabotaged . | . . . . . . . . Garrisons Compromised . | . . . . . . . . Overloaded Fab Kills . | . . . . . . . . Hacking | -11 -10 -10 -9 -9 -9 -8 -8 --------- Run | Scr Mat Min Mat Min Exi Min Mat Machines Accessed 18 | . 9 . 8 . 1 . . Terminals 11 | . 6 . 5 . . . . Fabricators . | . . . . . . . . Repair Stations 2 | . 1 . 1 . . . . Recycling Units 4 | . 2 . 2 . . . . Scanalyzers . | . . . . . . . . Garrison Access . | . . . . . . . . Total Hacks 58 | . 24 . 33 . 1 . . Successful 29 | . 13 . 15 . 1 . . Failed 27 | . 10 . 17 . . . . Catastrophic 1 | . . . 1 . . . . Database Lockouts 2 | . 1 . 1 . . . . Manual 30 | . 8 . 21 . 1 . . Terminals 38 | . 14 . 24 . . . . Fabricators . | . . . . . . . . Repair Stations 6 | . 4 . 2 . . . . Recycling Units 13 | . 6 . 7 . . . . Scanalyzers . | . . . . . . . . Garrison Access . | . . . . . . . . Terminal Hacks 13 | . 5 . 7 . 1 . . Robot Analysis 3 | . 1 . 2 . . . . Prototype ID Bank 1 | . 1 . . . . . . Alert Level 1 | . . . 1 . . . . Locate Traps 2 | . 1 . 1 . . . . Hauler Manifests 2 | . 1 . 1 . . . . Zone Layout 3 | . 1 . 2 . . . . EX-Prototype ID Bank 1 | . . . . . 1 . . Fabricator Hacks . | . . . . . . . . Repair Station Hacks 4 | . 4 . . . . . . Scan Component 2 | . 2 . . . . . . Repair 2 | . 2 . . . . . . Recycling Unit Hacks 2 | . 1 . 1 . . . . Retrieve Components 2 | . 1 . 1 . . . . Scanalyzer . | . . . . . . . . Garrison Access Hacks . | . . . . . . . . Unauthorized Hacks 10 | . 3 . 7 . . . . Terminals 4 | . . . 4 . . . . Track 2 | . . . 2 . . . . Disrupt 1 | . . . 1 . . . . Operators 1 | . . . 1 . . . . Fabricators . | . . . . . . . . Repair Stations . | . . . . . . . . Recycling Units 6 | . 3 . 3 . . . . Reject 2 | . 1 . 1 . . . . Tunnel 4 | . 2 . 2 . . . . Scanalyzers . | . . . . . . . . Garrison Access . | . . . . . . . . Data Cores Recovered . | . . . . . . . . Used . | . . . . . . . . Hacking Detections 15 | . 8 . 7 . . . . Full Trace Events 1 | . 1 . . . . . . Feedback Events . | . . . . . . . . Feedback Blocked . | . . . . . . . . Robot Schematics Acquired . | . . . . . . . . Robots Built . | . . . . . . . . Authchips . | . . . . . . . . Time . | . . . . . . . . Total Robot Build Rating . | . . . . . . . . Part Schematics Acquired . | . . . . . . . . Parts Built . | . . . . . . . . Authchips . | . . . . . . . . Time . | . . . . . . . . Total Part Build Rating . | . . . . . . . . Parts Repaired 2 | . 2 . . . . . . Time 52 | . 52 . . . . . . Parts Recycled . | . . . . . . . . Recycled Matter . | . . . . . . . . Retrieved Matter . | . . . . . . . . Retrieved Components 20 | . 10 . 10 . . . . Parts Scanalyzed . | . . . . . . . . Part Schematics Acquired . | . . . . . . . . Parts Damaged . | . . . . . . . . Bothacking | -11 -10 -10 -9 -9 -9 -8 -8 ------------ Run | Scr Mat Min Mat Min Exi Min Mat Used RIF Installer . | . . . . . . . . Robots Hacked . | . . . . . . . . Non-combat . | . . . . . . . . Combat . | . . . . . . . . Robot Hacks Applied . | . . . . . . . . Relay Couplers Released . | . . . . . . . . Fabnet Peak Effective % . | . . . . . . . . Robots Rewired . | . . . . . . . . Allies Hacked . | . . . . . . . . Hacks Repelled . | . . . . . . . . Allies | -11 -10 -10 -9 -9 -9 -8 -8 -------- Run | Scr Mat Min Mat Min Exi Min Mat Total Allies 3 | . . 2 . 1 . . . Largest Group 2 | . . 2 1 1 1 . . Highest-Rated Group 42 | . . 42 31 31 31 . . Highest-Rated Ally 31 | . . 31 31 31 31 . . Total Orders . | . . . . . . . . Ally Attacks 31 | . . 7 17 7 . . . Total Damage 527 | . . 124 297 106 . . . Kills 8 | . . 3 3 2 . . . Allies Corrupted . | . . . . . . . . Allies Melted . | . . . . . . . . Intel | -11 -10 -10 -9 -9 -9 -8 -8 ------- Run | Scr Mat Min Mat Min Exi Min Mat Robot Analysis Total 3 | . 1 . 2 . . . . Derelict Logs Recovered 1 | . . 1 . . . . . Drone Launches . | . . . . . . . . Drone Recoveries . | . . . . . . . . Exploration | -11 -10 -10 -9 -9 -9 -8 -8 ------------- Run | Scr Mat Min Mat Min Exi Min Mat Turns Passed 7243 | 96 1959 590 2734 554 942 261 107 Spaces Moved 2960 | 43 981 345 921 216 388 9 57 Core 46 | . . . . . . 1 45 Treads 2902 | 43 981 345 921 216 388 8 . Legs . | . . . . . . . . Wheels . | . . . . . . . . Hover . | . . . . . . . . Flight 12 | . . . . . . . 12 Fastest Speed 40 | 160 160 160 240 240 240 240 40 Average Speed 202 | 160 160 160 240 240 240 385 161 Slowest Speed 1550 | 160 160 320 240 240 240 1550 1300 Overloaded Moves . | . . . . . . . . Propulsion Burnouts . | . . . . . . . . Robots Hopped . | . . . . . . . . Cave-ins Triggered . | . . . . . . . . Exploration Rate (%) 48 | 5 99 84 60 47 70 12 11 Regions Visited 7 Branch Regions 4 Pre-discovered Areas 5 | . 2 1 2 . . . . Known Exits Taken . | . . . . . . . . Unknown Exits Taken 7 | 1 1 1 1 1 1 1 . Scrap Searched 4 | . . 3 . 1 . . . Spaces Dug 19 | . . . 19 . . . . Terrain Destroyed 155 | . 24 10 58 30 . . 33 Melee . | . . . . . . . . Projectile . | . . . . . . . . AOE 155 | . 24 10 58 30 . . 33 Terrain Rammed . | . . . . . . . . Walls Destroyed . | . . . . . . . . Machines Disabled . | . . . . . . . . Actions | -11 -10 -10 -9 -9 -9 -8 -8 --------- Run | Scr Mat Min Mat Min Exi Min Mat Total 3663 | 55 1201 370 1204 241 402 121 69 Wait 180 | . 89 5 47 5 . 34 . Move 2953 | 42 980 344 920 215 387 8 57 Hop . | . . . . . . . . Pick Up 63 | . 13 3 39 . 7 . 1 Fast Attach 20 | 1 5 2 8 4 . . . Attach 21 | . 1 . 6 . . 13 1 Detach 3 | . . 1 1 1 . . . Swap 35 | 3 7 3 15 6 . 1 . Drop 63 | 2 7 3 35 3 7 1 5 Fire 302 | 7 91 5 126 3 1 64 5 Melee . | . . . . . . . . Ram . | . . . . . . . . Kick . | . . . . . . . . Crush 23 | . 8 4 7 4 . . . Escape Stasis . | . . . . . . . . Rewire . | . . . . . . . . Trap . | . . . . . . . . Miscellaneous . | . . . . . . . . Route ------- -11/Scrapyard -10/Materials (discovered 5 exits: *Mat x3 / [*Min x2]) -10/Mines (discovered 2 exits: *Mat x2) -9/Materials (discovered 2 exits: [*Mat] / [*Min]) -9/Mines (discovered 2 exits: [*Mat] / *Exi) -9/Exiles -8/Mines -8/Materials History --------- Turn | Location | Event 4 | -11/Scrapyard | Discovered new exit (range 2) 97 | -11/Scrapyard | Entered Materials 110 | -10/Materials | Discovered new exit (range 15) 187 | -10/Materials | Central database locked down 205 | -10/Materials | Discovered new exit (range 9) 304 | -10/Materials | Build established: Mutant 551 | -10/Materials | Discovered new exit (range 11) 894 | -10/Materials | Discovered new exit (range 4) 1321 | -10/Materials | Discovered new exit (range 4) 1424 | -10/Materials | Repaired Lgt. Treads 1452 | -10/Materials | Repaired Lgt. Treads 2056 | -10/Materials | Entered Mines 2441 | -10/Mines | Learned location of Storage (-7) 2451 | -10/Mines | Discovered new exit (range 9) 2522 | -10/Mines | Learned Materials security intel 2632 | -10/Mines | Discovered new exit (range 7) 2646 | -10/Mines | Entered Materials 2646 | -9/Materials | Accompanied by 1 ally 2646 | -9/Materials | Evolved 2 slots: Propulsion x1, Utility x1 2651 | -9/Materials | Led the pair of lost Derelicts to an unsafe place 3042 | -9/Materials | Discovered new exit (range 13) 3502 | -9/Materials | Build established: Scavenger-Mutant 4160 | -9/Materials | Build established: Mutant 4445 | -9/Materials | Central database locked down 5005 | -9/Materials | Discovered new exit (range 11) 5380 | -9/Materials | Entered Mines 5428 | -9/Mines | Received a Rocket Launcher from a helpful Derelict 5530 | -9/Mines | Discovered new exit (range 14) 5795 | -9/Mines | Received a Mining Laser from a helpful Derelict 5924 | -9/Mines | Deemed a non-threat by the Exiles lab entrance 5924 | -9/Mines | Discovered new exit (range 5) 5934 | -9/Mines | Entered Exiles 5934 | -9/Exiles | Accompanied by 1 ally 5992 | -9/Exiles | Met 8R-AWN 6035 | -9/Exiles | Met EX-HEX 6122 | -9/Exiles | Met EX-DEC 6354 | -9/Exiles | Discovered new exit (range 11) 6521 | -9/Exiles | Met EX-BIN 6549 | -9/Exiles | Aligned with FarCom system 6552 | -9/Exiles | Given EX-Vault access code 6609 | -9/Exiles | Opened EX-Vault 6626 | -9/Exiles | Found Field Lobotomy Kit 6678 | -9/Exiles | Warned to stay clear of 0b10 Research branches 6707 | -9/Exiles | Exiles lab attacked by MAIN.C 6874 | -9/Exiles | Attacked by the Exiles 6876 | -9/Exiles | Left Exiles lab with Field Lobotomy Kit 6876 | -9/Exiles | Entered Mines 6879 | -8/Mines | Discovered new exit (range 6) 6927 | -8/Mines | 7V-RTL came to Exiles' defense 6961 | -8/Mines | Core integrity fell below 50% 7021 | -8/Mines | Lost 6 parts (1p3n1u1w) 7084 | -8/Mines | Core integrity fell below 20% 7137 | -8/Mines | Entered Materials 7137 | -8/Materials | Evolved 2 slots: Propulsion x1, Utility x1 7155 | -8/Materials | Lost 11 parts (2p4n3u2w) 7238 | -8/Materials | Core integrity fell below 50% 7241 | -8/Materials | Core integrity fell below 20% 7244 | -8/Materials | Destroyed by G-47 Trooper with Particle Gun Last Messages --------------- 07212_ O-16 Technician locks terminal. 07223_ Acquired 57 matter. 07226_ S-10 Pest destroyed. 07233_ The unstable cave ceiling collapses. 07234_ G-47 Trooper destroyed. 07235_ Rocket Launcher destroyed. 07235_ ALERT: Suspicious intruders detected, dispatching Cutter reinforcements to area. 07236_ W-25 Informer sends out distress signal. 07237_ Knocked back. 07241_ Slug penetrates U-05 Engineer. 07241_ U-05 Engineer knocked back. 07242_ The unstable cave ceiling collapses. 07242_ Triggered Shock Trap. 07242_ The floor emits a surge of raw power. 07242_ System corrupted (+1). 07242_ U-05 Engineer lays Concrete. 07243_ U-05 Engineer builds a Wall. 07243_ Knocked back. 07243_ K-01 Serf collects debris. Map ----- +----------------------------------------------------+ | ??????????????????????????????????????#[!!# """ "" | | ??????????????????????????????????????# [[# """ "" | | ??????????????????????????????????????# !# | | ??????????????????????????????????????# # | | ??????????????????????????????????????# + | | ??????????????????????#??????#######??# ######## | | ????????????????????## ###### ??# #??????? | | ???????????????????? # "" ?# #??????? | | ???????????????????? # G"?# #??????? | | ????????????????????? # "" # #??????? | | ?????????????????????? [# """ # #??????? | | ???????????????????????!! # """ + +??????? | | ????????????????????????! # """ # #??????? | | ????????????????????????? # # #??????? | | ?????????????????????????? ######## ##?????? | | ???????????????????????####+## #?????? | | ???????????????????????# = #?????? | | ???????????????????????# *% #?????? | | ???????????????????????# [ [ #?????? | | ???????????????????????# c# # #?????? | | ???????????????????????# m# [ # ##?????? | | ???????????????????????#gcu## #??????????? | | ???????????????????????# c ### #??????????? | | ???????????????????????#gc ## #??????????? | | ???????????????????????# ## ##??????????? | | ???????????????????????# @ ## #???????????? | | ??????????????????????# = % #### #???????????? | | ????????????????????? #??#######???????????? | | ??????????????????? k H #????????????????????? | | ????????????????? #????????????????????? | | ????????????????####### #????????????????????? | | ??????????????????????###+###????????????????????? | | ?????????????????????????????????????????????????? | | ?????????????????????????????????????????????????? | | ?????????????????????????????????????????????????? | | ?????????????????????????????????????????????????? | | ?????????????????????????????????????????????????? | | ?????????????????????????????????????????????????? | | ?????????????????????????????????????????????????? | | ?????????????????????????????????????????????????? | | ?????????????????????????????????????????????????? | | ?????????????????????????????????????????????????? | | ?????????????????????????????????????????????????? | | ?????????????????????????????????????????????????? | | ?????????????????????????????????????????????????? | | ?????????????????????????????????????????????????? | | ?????????????????????????????????????????????????? | | ?????????????????????????????????????????????????? | | ?????????????????????????????????????????????????? | | ?????????????????????????????????????????????????? | +----------------------------------------------------+ Best States ------------- Heat Dissipation 31 Energy Generation 14 Energy Capacity 280 Matter Stores 300 Matter Capacity 300 Sight Range 16 Terrain Scan Range 16 Terrain Scan Density 10 Armor Coverage 300 Evasion (%) 50 Targeting Accuracy 12 Recoil Reduction 3 Item Schematics ----------------- None Robot Schematics ------------------ None Fabricated ------------ Nothing Alien Tech Used ----------------- None Achievements -------------- None Challenges ------------ None Game ------ Seed SingularityCloakingMace Manual? 0 Play Time 00:41:27 Cumulative 1083.0 hours Start 2021.11.23 @ 15:31:50 End 2021.11.23 @ 16:30:15 Sessions 1 Manual Loads 0 Difficulty Rogue Special Mode None Game No. 355 Rogue 355 Adventurer 0 Explorer 0 Win Type - Total 60 Types 13/17/9/3/1/2/12/2/1 Lore% 94 Gallery% 94 Achievement% 87 Wizard Run 0 Options --------- ASCII 0 Keyboard 0 Movement Numpad Keybinds 0 Fullscreen 2 Font 24/Smallcaps Map View 76x50 Tactical HUD 1 Map Filters NONE Filters NONE Steam 1 RUN: e2caa263-c429-465e-ad59-2865d489a319